[Event "Titled Tuesday Blitz August 08 Late 2023"]
[White "Pakleza, Zbigniew"]
[Black "Zeman, Matyas"]
[WhiteFideId "1119290"]
[BlackFideId "364398"]
[WhiteElo "2830"]
[BlackElo "2466"]
[Result "1-0"]
[Round "1"]
[TimeControl "180+1"]
[Date "2023.08.08"]
[WhiteClock "0:01:01"]
[BlackClock "0:00:00"]
[Board "46"]

1. d4 {[%clk 0:03:00]}  Nf6 {[%clk 0:02:59]} 2. Nf3 {[%clk 0:03:01]}  e6 {[%clk 0:02:59]} 3. Bf4 {[%clk 0:03:01]}  d5 {[%clk 0:02:59]} 4. e3 {[%clk 0:03:01]}  Bd6 {[%clk 0:03:00]} 5. Bg3 {[%clk 0:03:01]}  O-O {[%clk 0:03:00]} 6. Nbd2 {[%clk 0:03:02]}  c5 {[%clk 0:03:01]} 7. c3 {[%clk 0:03:02]}  Nc6 {[%clk 0:03:02]} 8. Bd3 {[%clk 0:03:02]}  Qe7 {[%clk 0:03:02]} 9. Ne5 {[%clk 0:03:02]}  Nd7 {[%clk 0:03:02]} 10. Nxd7 {[%clk 0:03:01]}  Qxd7 {[%clk 0:03:03]} 11. Qh5 {[%clk 0:03:02]}  g6 {[%clk 0:03:01]} 12. Qh6 {[%clk 0:03:00]}  e5 {[%clk 0:02:53]} 13. Nf3 {[%clk 0:02:52]}  f6 {[%clk 0:02:44]} 14. dxe5 {[%clk 0:02:43]}  Nxe5 {[%clk 0:02:39]} 15. Nxe5 {[%clk 0:02:39]}  Bxe5 {[%clk 0:02:21]} 16. O-O-O {[%clk 0:02:38]}  Qg7 {[%clk 0:02:18]} 17. Qxg7+ {[%clk 0:01:56]}  Kxg7 {[%clk 0:02:19]} 18. Be2 {[%clk 0:01:47]}  Be6 {[%clk 0:02:12]} 19. f4 {[%clk 0:01:41]}  Bc7 {[%clk 0:00:36]} 20. Bf3 {[%clk 0:01:39]}  Rfd8 {[%clk 0:00:28]} 21. f5 {[%clk 0:01:34]}  Bxg3 {[%clk 0:00:28]} 22. fxe6 {[%clk 0:01:35]}  Bf2 {[%clk 0:00:20]} 23. Bxd5 {[%clk 0:01:34]}  Bxe3+ {[%clk 0:00:20]} 24. Kc2 {[%clk 0:01:35]}  Rab8 {[%clk 0:00:09]} 25. Bxb7 {[%clk 0:01:26]}  Rxd1 {[%clk 0:00:07]} 26. Rxd1 {[%clk 0:01:27]}  f5 {[%clk 0:00:03]} 27. Rd7+ {[%clk 0:01:22]}  Kf6 {[%clk 0:00:02]} 28. Bd5 {[%clk 0:01:23]}  Bg5 {[%clk 0:00:02]} 29. Rxa7 {[%clk 0:01:13]}  Re8 {[%clk 0:00:02]} 30. Rxh7 {[%clk 0:01:10]}  Re7 {[%clk 0:00:02]} 31. Rxe7 {[%clk 0:01:07]}  Kxe7 {[%clk 0:00:03]} 32. b4 {[%clk 0:01:04]}  cxb4 {[%clk 0:00:03]} 33. cxb4 {[%clk 0:01:05]}  Bf4 {[%clk 0:00:04]} 34. h3 {[%clk 0:01:05]}  Bb8 {[%clk 0:00:04]} 35. a4 {[%clk 0:01:04]}  Kd6 {[%clk 0:00:05]} 36. Bc4 {[%clk 0:01:05]}  Bc7 {[%clk 0:00:04]} 37. a5 {[%clk 0:01:04]}  g5 {[%clk 0:00:05]} 38. Kb3 {[%clk 0:01:01]}  g4 {[%clk 0:00:05]} 39. hxg4 {[%clk 0:01:01]}  fxg4 {[%clk 0:00:05]} 40. Ka4 {[%clk 0:01:01]}  g3 {[%clk 0:00:06]} 41. b5 {[%clk 0:01:01]}  Ke7 {[%clk 0:00:00]} 42. b6 {[%clk 0:01:01]} 1-0


[Site "https://www.chess.com"]

[Event "Titled Tuesday Blitz August 08 Late 2023"]
[White "Asadli, Vugar"]
[Black "Prithu Gupta"]
[WhiteFideId "13405764"]
[BlackFideId "46618546"]
[WhiteElo "2817"]
[BlackElo "2464"]
[Result "1-0"]
[Round "1"]
[TimeControl "180+1"]
[Date "2023.08.08"]
[WhiteClock "0:02:00"]
[BlackClock "0:01:20"]
[Board "48"]

1. e4 {[%clk 0:03:00]}  e5 {[%clk 0:02:59]} 2. Nf3 {[%clk 0:03:00]}  Nc6 {[%clk 0:02:59]} 3. Bb5 {[%clk 0:03:00]}  d6 {[%clk 0:02:59]} 4. O-O {[%clk 0:02:58]}  g6 {[%clk 0:02:58]} 5. d4 {[%clk 0:02:53]}  Bd7 {[%clk 0:02:58]} 6. Bxc6 {[%clk 0:02:46]}  Bxc6 {[%clk 0:02:58]} 7. dxe5 {[%clk 0:02:46]}  Bxe4 {[%clk 0:02:31]} 8. Re1 {[%clk 0:02:42]}  d5 {[%clk 0:02:22]} 9. Nc3 {[%clk 0:02:29]}  Bxf3 {[%clk 0:02:15]} 10. Qxf3 {[%clk 0:02:29]}  c6 {[%clk 0:02:03]} 11. e6 {[%clk 0:02:26]}  f5 {[%clk 0:02:02]} 12. g4 {[%clk 0:02:04]}  Bd6 {[%clk 0:01:55]} 13. gxf5 {[%clk 0:02:02]}  gxf5 {[%clk 0:01:20]} 14. Qh5+ {[%clk 0:02:00]} 1-0


[Site "https://www.chess.com"]

[Event "Titled Tuesday Blitz August 08 Late 2023"]
[White "Salazar Farias, Luis German"]
[Black "Ashraf, Artin"]
[WhiteFideId "3902170"]
[BlackFideId "22514805"]
[WhiteElo "2464"]
[BlackElo "2817"]
[Result "0-1"]
[Round "1"]
[TimeControl "180+1"]
[Date "2023.08.08"]
[WhiteClock "0:00:00"]
[BlackClock "0:01:20"]
[Board "49"]

1. d4 {[%clk 0:02:59]}  g6 {[%clk 0:02:51]} 2. e4 {[%clk 0:02:57]}  Bg7 {[%clk 0:02:51]} 3. Nc3 {[%clk 0:02:52]}  d6 {[%clk 0:02:50]} 4. f4 {[%clk 0:02:47]}  a6 {[%clk 0:02:46]} 5. Nf3 {[%clk 0:02:46]}  b5 {[%clk 0:02:45]} 6. Bd3 {[%clk 0:02:42]}  Bb7 {[%clk 0:02:44]} 7. a4 {[%clk 0:02:37]}  b4 {[%clk 0:02:43]} 8. Ne2 {[%clk 0:02:36]}  Nf6 {[%clk 0:02:40]} 9. e5 {[%clk 0:01:57]}  Nd5 {[%clk 0:02:10]} 10. O-O {[%clk 0:01:39]}  Nd7 {[%clk 0:02:09]} 11. c4 {[%clk 0:01:31]}  bxc3 {[%clk 0:02:09]} 12. bxc3 {[%clk 0:01:31]}  c5 {[%clk 0:02:08]} 13. c4 {[%clk 0:01:03]}  Nb4 {[%clk 0:02:05]} 14. exd6 {[%clk 0:00:51]}  cxd4 {[%clk 0:01:49]} 15. Ba3 {[%clk 0:00:16]}  a5 {[%clk 0:01:35]} 16. Bxb4 {[%clk 0:00:08]}  axb4 {[%clk 0:01:33]} 17. c5 {[%clk 0:00:04]}  O-O {[%clk 0:01:30]} 18. Rc1 {[%clk 0:00:05]}  Rc8 {[%clk 0:01:24]} 19. Bb5 {[%clk 0:00:02]}  Nxc5 {[%clk 0:01:22]} 20. Nexd4 {[%clk 0:00:00]}  Qxd6 {[%clk 0:01:20]} 0-1


[Site "https://www.chess.com"]

[Event "Titled Tuesday Blitz August 08 Late 2023"]
[White "Bazeev, German"]
[Black "Guerrero Vargas, Andres Jesus"]
[WhiteFideId "24119350"]
[BlackFideId "3902048"]
[WhiteElo "2812"]
[BlackElo "2463"]
[Result "1-0"]
[Round "1"]
[TimeControl "180+1"]
[Date "2023.08.08"]
[WhiteClock "0:00:33"]
[BlackClock "0:00:02"]
[Board "50"]

1. c4 {[%clk 0:03:00]}  e5 {[%clk 0:02:59]} 2. Nc3 {[%clk 0:03:01]}  Nf6 {[%clk 0:02:58]} 3. Nf3 {[%clk 0:03:02]}  e4 {[%clk 0:02:57]} 4. Nd4 {[%clk 0:02:57]}  Nc6 {[%clk 0:02:42]} 5. Nxc6 {[%clk 0:02:55]}  dxc6 {[%clk 0:02:41]} 6. e3 {[%clk 0:02:56]}  Bf5 {[%clk 0:02:13]} 7. Qb3 {[%clk 0:02:55]}  Rb8 {[%clk 0:02:05]} 8. Qc2 {[%clk 0:02:47]}  Bd6 {[%clk 0:01:57]} 9. h3 {[%clk 0:02:40]}  h5 {[%clk 0:01:55]} 10. b3 {[%clk 0:02:30]}  Qe7 {[%clk 0:01:46]} 11. Bb2 {[%clk 0:02:30]}  h4 {[%clk 0:01:19]} 12. O-O-O {[%clk 0:02:25]}  Ba3 {[%clk 0:01:09]} 13. f4 {[%clk 0:02:21]}  Bxb2+ {[%clk 0:00:57]} 14. Kxb2 {[%clk 0:02:17]}  Nh5 {[%clk 0:00:52]} 15. d4 {[%clk 0:02:07]}  Ng3 {[%clk 0:00:50]} 16. Rg1 {[%clk 0:02:05]}  Bg6 {[%clk 0:00:39]} 17. Qd2 {[%clk 0:01:36]}  Bh5 {[%clk 0:00:39]} 18. Rc1 {[%clk 0:01:31]}  f5 {[%clk 0:00:38]} 19. c5 {[%clk 0:01:27]}  b6 {[%clk 0:00:36]} 20. Ne2 {[%clk 0:01:09]}  Nxf1 {[%clk 0:00:22]} 21. Rgxf1 {[%clk 0:01:07]}  O-O {[%clk 0:00:21]} 22. Rg1 {[%clk 0:00:59]}  Rfd8 {[%clk 0:00:20]} 23. g4 {[%clk 0:00:52]}  Bg6 {[%clk 0:00:12]} 24. Qe1 {[%clk 0:00:42]}  Qf6 {[%clk 0:00:10]} 25. gxf5 {[%clk 0:00:38]}  Bxf5 {[%clk 0:00:10]} 26. Rg5 {[%clk 0:00:38]}  bxc5 {[%clk 0:00:10]} 27. Rxc5 {[%clk 0:00:36]}  Rd5 {[%clk 0:00:10]} 28. Rxd5 {[%clk 0:00:34]}  cxd5 {[%clk 0:00:11]} 29. Nc3 {[%clk 0:00:34]}  c5 {[%clk 0:00:02]} 30. Nxd5 {[%clk 0:00:33]} 1-0


[Site "https://www.chess.com"]

[Event "Titled Tuesday Blitz August 08 Late 2023"]
[White "Troff, Kayden"]
[Black "ChessSG1"]
[WhiteFideId "2047896"]
[WhiteElo "2807"]
[BlackElo "2462"]
[Result "1-0"]
[Round "1"]
[TimeControl "180+1"]
[Date "2023.08.08"]
[WhiteClock "0:00:40"]
[BlackClock "0:00:00"]
[Board "52"]

1. d4 {[%clk 0:02:51]}  d5 {[%clk 0:02:59]} 2. Nf3 {[%clk 0:02:49]}  Nf6 {[%clk 0:03:00]} 3. Bf4 {[%clk 0:02:47]}  c5 {[%clk 0:02:59]} 4. e3 {[%clk 0:02:47]}  Nc6 {[%clk 0:02:59]} 5. Nc3 {[%clk 0:02:46]}  a6 {[%clk 0:02:49]} 6. dxc5 {[%clk 0:02:42]}  e6 {[%clk 0:02:48]} 7. Na4 {[%clk 0:02:40]}  Bxc5 {[%clk 0:02:43]} 8. Nxc5 {[%clk 0:02:38]}  Qa5+ {[%clk 0:02:42]} 9. c3 {[%clk 0:02:37]}  Qxc5 {[%clk 0:02:42]} 10. Bd3 {[%clk 0:02:35]}  O-O {[%clk 0:02:38]} 11. O-O {[%clk 0:02:33]}  Qe7 {[%clk 0:02:37]} 12. Ne5 {[%clk 0:02:33]}  h6 {[%clk 0:02:11]} 13. Bc2 {[%clk 0:02:20]}  Nxe5 {[%clk 0:02:05]} 14. Bxe5 {[%clk 0:02:21]}  Nd7 {[%clk 0:02:06]} 15. Bg3 {[%clk 0:02:20]}  Qf6 {[%clk 0:01:59]} 16. e4 {[%clk 0:02:14]}  dxe4 {[%clk 0:01:39]} 17. Bxe4 {[%clk 0:02:15]}  Nc5 {[%clk 0:01:37]} 18. Bf3 {[%clk 0:02:06]}  Rd8 {[%clk 0:01:35]} 19. Qe2 {[%clk 0:02:02]}  Bd7 {[%clk 0:01:33]} 20. Rfd1 {[%clk 0:01:48]}  Bb5 {[%clk 0:01:28]} 21. c4 {[%clk 0:01:47]}  Be8 {[%clk 0:01:15]} 22. Bd6 {[%clk 0:01:37]}  Na4 {[%clk 0:01:09]} 23. Bxb7 {[%clk 0:01:29]}  Ra7 {[%clk 0:01:03]} 24. Be5 {[%clk 0:01:20]}  Rxd1+ {[%clk 0:00:47]} 25. Rxd1 {[%clk 0:01:17]}  Qe7 {[%clk 0:00:44]} 26. Bf3 {[%clk 0:01:11]}  Rd7 {[%clk 0:00:18]} 27. b3 {[%clk 0:01:01]}  Nc5 {[%clk 0:00:12]} 28. g3 {[%clk 0:00:59]}  f6 {[%clk 0:00:10]} 29. Bb2 {[%clk 0:00:55]}  Qd8 {[%clk 0:00:08]} 30. Ba3 {[%clk 0:00:49]}  Rxd1+ {[%clk 0:00:02]} 31. Qxd1 {[%clk 0:00:49]}  Qxd1+ {[%clk 0:00:02]} 32. Bxd1 {[%clk 0:00:50]}  Nd3 {[%clk 0:00:02]} 33. Bc2 {[%clk 0:00:48]}  Ne5 {[%clk 0:00:02]} 34. Be4 {[%clk 0:00:40]}  f5 {[%clk 0:00:00]} 35. Bb7 {[%clk 0:00:40]} 1-0


[Site "https://www.chess.com"]

[Event "Titled Tuesday Blitz August 08 Late 2023"]
[White "Vovk, Orest"]
[Black "Riehle, Marco"]
[WhiteFideId "14113490"]
[BlackFideId "12904392"]
[WhiteElo "2460"]
[BlackElo "2806"]
[Result "0-1"]
[Round "1"]
[TimeControl "180+1"]
[Date "2023.08.08"]
[WhiteClock "0:00:00"]
[BlackClock "0:01:01"]
[Board "53"]

1. h4 {[%clk 0:02:56]}  d5 {[%clk 0:02:59]} 2. h5 {[%clk 0:02:55]}  e5 {[%clk 0:02:59]} 3. h6 {[%clk 0:02:55]}  g6 {[%clk 0:02:56]} 4. d4 {[%clk 0:02:55]}  exd4 {[%clk 0:02:55]} 5. Qxd4 {[%clk 0:02:54]}  f6 {[%clk 0:02:54]} 6. Nc3 {[%clk 0:02:53]}  Be6 {[%clk 0:02:53]} 7. e4 {[%clk 0:02:52]}  Nc6 {[%clk 0:02:50]} 8. Bb5 {[%clk 0:02:51]}  a6 {[%clk 0:02:48]} 9. Bxc6+ {[%clk 0:02:48]}  bxc6 {[%clk 0:02:49]} 10. exd5 {[%clk 0:02:46]}  cxd5 {[%clk 0:02:48]} 11. Bf4 {[%clk 0:02:43]}  c5 {[%clk 0:02:44]} 12. Qe3 {[%clk 0:02:39]}  Kf7 {[%clk 0:02:40]} 13. O-O-O {[%clk 0:02:33]}  d4 {[%clk 0:02:39]} 14. Qf3 {[%clk 0:02:32]}  f5 {[%clk 0:02:04]} 15. Be5 {[%clk 0:02:18]}  Nf6 {[%clk 0:02:02]} 16. Nh3 {[%clk 0:02:17]}  Bxh6+ {[%clk 0:02:02]} 17. Kb1 {[%clk 0:02:15]}  Re8 {[%clk 0:01:53]} 18. Nf4 {[%clk 0:02:00]}  Bxf4 {[%clk 0:01:51]} 19. Qxf4 {[%clk 0:01:46]}  Kg8 {[%clk 0:01:38]} 20. Qh2 {[%clk 0:00:58]}  Ra7 {[%clk 0:01:31]} 21. Ne2 {[%clk 0:00:49]}  Ng4 {[%clk 0:01:29]} 22. Qg3 {[%clk 0:00:28]}  Nxe5 {[%clk 0:01:27]} 23. Nf4 {[%clk 0:00:28]}  Rg7 {[%clk 0:01:19]} 24. Rde1 {[%clk 0:00:24]}  Bf7 {[%clk 0:01:16]} 25. b3 {[%clk 0:00:14]}  Nc6 {[%clk 0:01:09]} 26. Rxe8+ {[%clk 0:00:05]}  Qxe8 {[%clk 0:01:09]} 27. f3 {[%clk 0:00:05]}  c4 {[%clk 0:01:03]} 28. Re1 {[%clk 0:00:00]}  Qb8 {[%clk 0:01:01]} 0-1


[Site "https://www.chess.com"]

[Event "Titled Tuesday Blitz August 08 Late 2023"]
[White "Lima, Kleyton Alcantara"]
[Black "Guseinov, Gadir"]
[WhiteFideId "22718397"]
[BlackFideId "13401378"]
[WhiteElo "2457"]
[BlackElo "2805"]
[Result "1/2-1/2"]
[Round "1"]
[TimeControl "180+1"]
[Date "2023.08.08"]
[WhiteClock "0:00:18"]
[BlackClock "0:00:19"]
[Board "55"]

1. e4 {[%clk 0:02:57]}  c5 {[%clk 0:03:00]} 2. Nf3 {[%clk 0:02:56]}  g6 {[%clk 0:03:00]} 3. d4 {[%clk 0:02:56]}  cxd4 {[%clk 0:03:01]} 4. Nxd4 {[%clk 0:02:56]}  Nc6 {[%clk 0:03:01]} 5. c4 {[%clk 0:02:56]}  Nf6 {[%clk 0:03:02]} 6. Nc3 {[%clk 0:02:56]}  Nxd4 {[%clk 0:03:02]} 7. Qxd4 {[%clk 0:02:53]}  d6 {[%clk 0:03:03]} 8. Be2 {[%clk 0:02:52]}  Bg7 {[%clk 0:03:03]} 9. O-O {[%clk 0:02:41]}  O-O {[%clk 0:03:03]} 10. Qd3 {[%clk 0:02:40]}  a5 {[%clk 0:03:01]} 11. Be3 {[%clk 0:02:35]}  a4 {[%clk 0:03:01]} 12. Bd4 {[%clk 0:02:35]}  Bd7 {[%clk 0:02:58]} 13. b4 {[%clk 0:02:30]}  axb3 {[%clk 0:02:54]} 14. axb3 {[%clk 0:02:31]}  Bc6 {[%clk 0:02:51]} 15. Nd5 {[%clk 0:02:16]}  Bxd5 {[%clk 0:02:49]} 16. exd5 {[%clk 0:02:17]}  Rxa1 {[%clk 0:02:46]} 17. Rxa1 {[%clk 0:02:17]}  Nd7 {[%clk 0:02:46]} 18. h4 {[%clk 0:02:13]}  h5 {[%clk 0:02:39]} 19. Bxg7 {[%clk 0:02:11]}  Kxg7 {[%clk 0:02:40]} 20. Ra7 {[%clk 0:02:05]}  Qb6 {[%clk 0:02:37]} 21. Qe3 {[%clk 0:02:02]}  Nc5 {[%clk 0:02:22]} 22. Ra3 {[%clk 0:01:46]}  Qb4 {[%clk 0:02:23]} 23. Ra7 {[%clk 0:01:31]}  Re8 {[%clk 0:02:22]} 24. Bd1 {[%clk 0:01:28]}  e5 {[%clk 0:02:13]} 25. dxe6 {[%clk 0:01:29]}  Rxe6 {[%clk 0:02:13]} 26. Qd4+ {[%clk 0:01:25]}  Rf6 {[%clk 0:02:13]} 27. Kh2 {[%clk 0:01:18]}  Qe1 {[%clk 0:02:11]} 28. Ra2 {[%clk 0:01:14]}  Ne6 {[%clk 0:02:09]} 29. Qa1 {[%clk 0:01:10]}  Qe4 {[%clk 0:01:48]} 30. g3 {[%clk 0:01:06]}  Nd4 {[%clk 0:01:49]} 31. Qc3 {[%clk 0:00:59]}  Qe5 {[%clk 0:01:49]} 32. Kg2 {[%clk 0:00:54]}  Qe4+ {[%clk 0:01:36]} 33. Kh2 {[%clk 0:00:54]}  Kh7 {[%clk 0:01:00]} 34. Rd2 {[%clk 0:00:50]}  Nf3+ {[%clk 0:01:00]} 35. Bxf3 {[%clk 0:00:50]}  Rxf3 {[%clk 0:01:01]} 36. Qd4 {[%clk 0:00:32]}  Qxd4 {[%clk 0:01:00]} 37. Rxd4 {[%clk 0:00:33]}  Rxf2+ {[%clk 0:01:01]} 38. Kg1 {[%clk 0:00:32]}  Rf3 {[%clk 0:01:00]} 39. Kg2 {[%clk 0:00:28]}  Rxb3 {[%clk 0:01:00]} 40. Rxd6 {[%clk 0:00:29]}  Kg7 {[%clk 0:01:00]} 41. c5 {[%clk 0:00:27]}  Rc3 {[%clk 0:00:54]} 42. Rb6 {[%clk 0:00:26]}  Rxc5 {[%clk 0:00:54]} 43. Rxb7 {[%clk 0:00:27]}  Kf6 {[%clk 0:00:55]} 44. Rb6+ {[%clk 0:00:27]}  Kf5 {[%clk 0:00:55]} 45. Rb4 {[%clk 0:00:28]}  Re5 {[%clk 0:00:50]} 46. Rf4+ {[%clk 0:00:28]}  Ke6 {[%clk 0:00:51]} 47. Ra4 {[%clk 0:00:28]}  f6 {[%clk 0:00:50]} 48. Kf3 {[%clk 0:00:29]}  Rf5+ {[%clk 0:00:50]} 49. Kg2 {[%clk 0:00:29]}  Rc5 {[%clk 0:00:50]} 50. Ra6+ {[%clk 0:00:28]}  Kf5 {[%clk 0:00:50]} 51. Ra4 {[%clk 0:00:28]}  Rd5 {[%clk 0:00:49]} 52. Kf3 {[%clk 0:00:29]}  Rd3+ {[%clk 0:00:49]} 53. Kg2 {[%clk 0:00:29]}  Re3 {[%clk 0:00:50]} 54. Rf4+ {[%clk 0:00:29]}  Ke5 {[%clk 0:00:50]} 55. Ra4 {[%clk 0:00:30]}  Re4 {[%clk 0:00:50]} 56. Ra5+ {[%clk 0:00:29]}  Ke6 {[%clk 0:00:51]} 57. Kf3 {[%clk 0:00:29]}  Re5 {[%clk 0:00:52]} 58. Ra6+ {[%clk 0:00:30]}  Kf5 {[%clk 0:00:51]} 59. Ra4 {[%clk 0:00:29]}  Rb5 {[%clk 0:00:51]} 60. Rf4+ {[%clk 0:00:29]}  Ke6 {[%clk 0:00:51]} 61. Re4+ {[%clk 0:00:29]}  Kd5 {[%clk 0:00:50]} 62. Rf4 {[%clk 0:00:26]}  Rb3+ {[%clk 0:00:50]} 63. Kg2 {[%clk 0:00:26]}  Ke5 {[%clk 0:00:49]} 64. Ra4 {[%clk 0:00:26]}  Rd3 {[%clk 0:00:48]} 65. Rb4 {[%clk 0:00:25]}  Rd4 {[%clk 0:00:45]} 66. Rb6 {[%clk 0:00:24]}  Kf5 {[%clk 0:00:44]} 67. Kf3 {[%clk 0:00:23]}  Rd5 {[%clk 0:00:33]} 68. Rb4 {[%clk 0:00:22]}  g5 {[%clk 0:00:30]} 69. hxg5 {[%clk 0:00:21]}  Kxg5 {[%clk 0:00:31]} 70. Ra4 {[%clk 0:00:19]}  Rb5 {[%clk 0:00:29]} 71. Rc4 {[%clk 0:00:19]}  Rb3+ {[%clk 0:00:29]} 72. Kg2 {[%clk 0:00:19]}  f5 {[%clk 0:00:30]} 73. Kh3 {[%clk 0:00:19]}  Rb1 {[%clk 0:00:28]} 74. Rf4 {[%clk 0:00:19]}  Re1 {[%clk 0:00:26]} 75. Ra4 {[%clk 0:00:18]}  Rh1+ {[%clk 0:00:24]} 76. Kg2 {[%clk 0:00:18]}  Rd1 {[%clk 0:00:25]} 77. Ra8 {[%clk 0:00:18]}  Rd6 {[%clk 0:00:23]} 78. Rg8+ {[%clk 0:00:18]}  Kf6 {[%clk 0:00:23]} 79. Ra8 {[%clk 0:00:19]}  Ke5 {[%clk 0:00:23]} 80. Rh8 {[%clk 0:00:19]}  Ke4 {[%clk 0:00:21]} 81. Rxh5 {[%clk 0:00:18]}  Rd2+ {[%clk 0:00:22]} 82. Kh3 {[%clk 0:00:19]}  Rf2 {[%clk 0:00:22]} 83. Rh8 {[%clk 0:00:17]}  Rf1 {[%clk 0:00:21]} 84. Kg2 {[%clk 0:00:17]}  Ra1 {[%clk 0:00:21]} 85. Re8+ {[%clk 0:00:17]}  Kd5 {[%clk 0:00:22]} 86. Rd8+ {[%clk 0:00:17]}  Ke5 {[%clk 0:00:22]} 87. Re8+ {[%clk 0:00:18]}  Kf6 {[%clk 0:00:23]} 88. Rf8+ {[%clk 0:00:18]}  Kg6 {[%clk 0:00:23]} 89. Rb8 {[%clk 0:00:19]}  Ra2+ {[%clk 0:00:23]} 90. Kh3 {[%clk 0:00:19]}  Ra3 {[%clk 0:00:24]} 91. Rg8+ {[%clk 0:00:20]}  Kh5 {[%clk 0:00:24]} 92. Rh8+ {[%clk 0:00:20]}  Kg5 {[%clk 0:00:24]} 93. Rg8+ {[%clk 0:00:20]}  Kh6 {[%clk 0:00:25]} 94. Rf8 {[%clk 0:00:20]}  Kg6 {[%clk 0:00:25]} 95. Rg8+ {[%clk 0:00:20]}  Kf7 {[%clk 0:00:26]} 96. Rg5 {[%clk 0:00:20]}  Ke6 {[%clk 0:00:25]} 97. Rg6+ {[%clk 0:00:20]}  Kf7 {[%clk 0:00:25]} 98. Rg5 {[%clk 0:00:20]}  Kf6 {[%clk 0:00:26]} 99. Rg8 {[%clk 0:00:20]}  Ra7 {[%clk 0:00:26]} 100. Kg2 {[%clk 0:00:20]}  Re7 {[%clk 0:00:26]} 101. Rf8+ {[%clk 0:00:20]}  Ke5 {[%clk 0:00:26]} 102. Ra8 {[%clk 0:00:21]}  Rd7 {[%clk 0:00:26]} 103. Ra5+ {[%clk 0:00:21]}  Kf6 {[%clk 0:00:27]} 104. Ra6+ {[%clk 0:00:22]}  Kg5 {[%clk 0:00:27]} 105. Ra5 {[%clk 0:00:22]}  Rd3 {[%clk 0:00:26]} 106. Rb5 {[%clk 0:00:22]}  Re3 {[%clk 0:00:27]} 107. Ra5 {[%clk 0:00:22]}  Re4 {[%clk 0:00:27]} 108. Rb5 {[%clk 0:00:22]}  Kg4 {[%clk 0:00:28]} 109. Rb3 {[%clk 0:00:22]}  Re2+ {[%clk 0:00:28]} 110. Kf1 {[%clk 0:00:22]}  Ra2 {[%clk 0:00:28]} 111. Kg1 {[%clk 0:00:22]}  Ra4 {[%clk 0:00:26]} 112. Kf1 {[%clk 0:00:22]}  Re4 {[%clk 0:00:26]} 113. Kf2 {[%clk 0:00:22]}  Rc4 {[%clk 0:00:24]} 114. Ra3 {[%clk 0:00:22]}  Rb4 {[%clk 0:00:24]} 115. Rc3 {[%clk 0:00:22]}  Kh3 {[%clk 0:00:23]} 116. Kf3 {[%clk 0:00:21]}  Rb1 {[%clk 0:00:22]} 117. Kf4 {[%clk 0:00:20]}  Rb4+ {[%clk 0:00:18]} 118. Kxf5 {[%clk 0:00:18]}  Rg4 {[%clk 0:00:18]} 119. Rd3 {[%clk 0:00:17]}  Rxg3 {[%clk 0:00:18]} 120. Rxg3+ {[%clk 0:00:18]}  Kxg3 {[%clk 0:00:19]} 1/2-1/2


[Site "https://www.chess.com"]

[Event "Titled Tuesday Blitz August 08 Late 2023"]
[White "Tristan, Leonardo"]
[Black "szachmistrz2500"]
[WhiteFideId "113816"]
[WhiteElo "2784"]
[BlackElo "2442"]
[Result "1-0"]
[Round "1"]
[TimeControl "180+1"]
[Date "2023.08.08"]
[WhiteClock "0:02:28"]
[BlackClock "0:01:35"]
[Board "58"]

1. d4 {[%clk 0:03:00]}  d5 {[%clk 0:02:58]} 2. Nf3 {[%clk 0:03:01]}  Nf6 {[%clk 0:02:57]} 3. Bf4 {[%clk 0:03:01]}  c5 {[%clk 0:02:55]} 4. e3 {[%clk 0:03:01]}  Qb6 {[%clk 0:02:53]} 5. Nc3 {[%clk 0:02:59]}  a6 {[%clk 0:02:51]} 6. Na4 {[%clk 0:02:58]}  Qa5+ {[%clk 0:02:49]} 7. c3 {[%clk 0:02:58]}  cxd4 {[%clk 0:02:47]} 8. exd4 {[%clk 0:02:58]}  Nc6 {[%clk 0:02:39]} 9. Bd3 {[%clk 0:02:42]}  Bg4 {[%clk 0:02:21]} 10. Nc5 {[%clk 0:02:40]}  Qb6 {[%clk 0:02:13]} 11. Qb3 {[%clk 0:02:36]}  Qxb3 {[%clk 0:02:04]} 12. axb3 {[%clk 0:02:36]}  Nd8 {[%clk 0:02:01]} 13. Ne5 {[%clk 0:02:31]}  Bc8 {[%clk 0:01:35]} 14. Bb5+ {[%clk 0:02:28]} 1-0


[Site "https://www.chess.com"]